lending/lending_fUSD_20240110
["ID","MTS","AMOUNT","RATE_DAILY","PERIOD"]
[311019754,1704870695303,-500.0,0.00030958,2]
[311019755,1704870695312,-500.0,0.00030958,2]
[311019756,1704870695321,-1225.57,0.00030958,2]
[311019757,1704870695331,-500.0,0.00030958,2]
[311019758,1704870695347,-596.33,0.00030958,2]
[311019759,1704870695361,-1263.79,0.00030958,2]
[311019760,1704870695371,-173.66733635,0.00030958,2]
[311019761,1704870695380,-984.98,0.00030958,2]
[311019762,1704870695390,-575.68,0.00030958,2]
[311019763,1704870695399,-500.0,0.00030958,2]
[311019764,1704870695408,-500.0,0.00030958,2]
[311019765,1704870695417,-500.0,0.00030958,2]
[311019766,1704870695427,-1402.44,0.00030958,2]
[311019767,1704870695436,-879.23,0.00030958,2]
[311019768,1704870695446,-500.0,0.00030958,2]
[311019769,1704870695455,-1532.41,0.00030958,2]
[311019770,1704870695464,-500.0,0.00030958,2]
[311019771,1704870695475,-500.0,0.00030958,2]
[311019772,1704870695484,-500.0,0.00030958,2]
[311019773,1704870695494,-500.0,0.00030958,2]
[311019774,1704870695513,-500.0,0.00030958,2]
[311019775,1704870695523,-803.22,0.00030958,2]
[311019776,1704870695533,-1474.28,0.00030958,2]
[311019777,1704870695542,-500.0,0.00030958,2]
[311019778,1704870695552,-1488.19,0.00030958,2]
[311019779,1704870695561,-513.43,0.00030958,2]
[311019780,1704870695570,-500.0,0.00030958,2]
[311019781,1704870695580,-500.0,0.00030958,2]
[311019782,1704870695590,-500.0,0.00030958,2]
[311019783,1704870695601,-501.84,0.00030958,2]
[311019784,1704870695611,-500.0,0.00030958,2]
[311019785,1704870695621,-500.0,0.00030958,2]
[311019786,1704870695630,-500.0,0.00030958,2]
[311019787,1704870695640,-500.0,0.00030958,2]
[311019788,1704870695649,-852.26,0.00030958,2]
[311019789,1704870695659,-500.0,0.00030958,2]
[311019790,1704870695668,-912.93248624,0.00030958,7]
[311019791,1704870695677,-500.0,0.00030958,2]
[311019792,1704870695686,-213.3847319,0.00030958,2]
[311019793,1704870695695,-500.0,0.00030958,2]
[311019794,1704870695705,-500.0,0.00030958,2]
[311019795,1704870695714,-538.82,0.00030958,2]
[311019796,1704870695724,-604.31,0.00030958,2]
[311019797,1704870695733,-500.0,0.00030958,2]
[311019798,1704870695742,-500.0,0.00030958,2]
[311019799,1704870695751,-500.0,0.00030958,2]
[311019800,1704870695761,-500.0,0.00030958,2]
[311019801,1704870695771,-500.0,0.00030958,2]
[311019802,1704870695780,-500.0,0.00030958,2]
[311019803,1704870695789,-500.0,0.00030958,2]
[311019804,1704870695798,-1213.21,0.00030958,2]
[311019805,1704870695808,-500.0,0.00030958,2]
[311019806,1704870695817,-972.65,0.00030958,2]
[311019807,1704870695827,-1426.16,0.00030958,2]
[311019808,1704870695836,-500.0,0.00030958,2]
[311019809,1704870695845,-821.5,0.00030958,2]
[311019810,1704870695855,-500.0,0.00030958,2]
[311019811,1704870695865,-303.5025966,0.00030958,2]
[311019812,1704870695874,-500.0,0.00030958,2]
[311019813,1704870695883,-500.0,0.00030958,2]
[311019814,1704870695893,-647.7,0.00030958,2]
[311019815,1704870695902,-1750.0,0.00030958,2]
[311019816,1704870695911,-500.0,0.00030958,2]
[311019817,1704870695920,-688.63,0.00030958,2]
[311019818,1704870695930,-1578.94,0.00030958,2]
[311019819,1704870695939,-500.0,0.00030958,2]
[311019820,1704870695949,-500.0,0.00030958,2]
[311019821,1704870695958,-1439.57,0.00030958,2]
[311019822,1704870695968,-1054.35,0.00030958,2]
[311019823,1704870695977,-1092.24,0.00030958,2]
[311019824,1704870695986,-500.0,0.00030958,2]
[311019825,1704870695996,-500.0,0.00030958,2]
[311019826,1704870696006,-944.54,0.00030958,2]
[311019827,1704870696016,-500.0,0.00030958,2]
[311019828,1704870696025,-995.94,0.00030958,2]
[311019829,1704870696034,-964.48,0.00030958,2]
[311019830,1704870696044,-500.0,0.00030958,2]
[311019831,1704870696053,-500.0,0.00030958,2]
[311019832,1704870696062,-500.0,0.00030958,2]
[311019833,1704870696072,-623.44511048,0.00030958,2]
[311019834,1704870696082,-1430.65,0.00030958,2]
[311019835,1704870696091,-592.8,0.00030958,2]
[311019836,1704870696101,-1120.0,0.00030958,2]
[311019837,1704870696111,-500.0,0.00030958,2]
[311019838,1704870696121,-886.78,0.00030958,2]
[311019839,1704870696130,-500.0,0.00030958,2]
[311019840,1704870696139,-835.37,0.00030958,2]
[311019841,1704870696149,-500.0,0.00030958,2]
[311019842,1704870696158,-500.0,0.00030958,2]
[311019843,1704870696168,-500.0,0.00030958,2]
[311019844,1704870696177,-500.0,0.00030958,2]
[311019845,1704870696186,-500.0,0.00030958,2]
[311019846,1704870696195,-1906.5,0.00030958,2]
[311019847,1704870696205,-1321.7,0.00030958,2]
[311019848,1704870696215,-943.16,0.00030958,2]
[311019849,1704870696224,-1162.59,0.00030958,2]
[311019850,1704870696233,-1192.45,0.00030958,2]
[311019851,1704870696243,-1062.9,0.00030958,2]
[311019852,1704870696252,-1007.7,0.00030958,2]
[311019853,1704870696262,-1028.18,0.00030958,2]
[311019854,1704870696271,-500.0,0.00030958,2]
[311019855,1704870696281,-500.0,0.00030958,2]
[311019856,1704870696290,-500.0,0.00030958,2]
[311019857,1704870696299,-686.98,0.00030958,2]
[311019858,1704870696309,-500.0,0.00030958,2]
[311019859,1704870696318,-500.0,0.00030958,2]
[311019860,1704870696327,-500.0,0.00030958,2]
[311019861,1704870696337,-500.0,0.00030958,2]
[311019862,1704870696347,-2638.47,0.00030958,2]
[311019863,1704870696356,-500.0,0.00030958,2]
[311019864,1704870696365,-1168.36,0.00030958,2]
[311019865,1704870696375,-1696.15,0.00030958,2]
[311019866,1704870696384,-636.47,0.00030958,2]
[311019867,1704870696394,-500.0,0.00030958,7]
[311019868,1704870696403,-500.0,0.00030958,2]
[311019869,1704870696413,-975.22,0.00030958,2]
[311019870,1704870696422,-603.27,0.00030958,2]
[311019871,1704870696431,-317.34,0.00030958,2]
[311019872,1704870696441,-500.0,0.00030958,2]
[311019873,1704870696451,-500.0,0.00030958,2]
[311019874,1704870696461,-500.0,0.00030958,2]
[311019875,1704870696471,-500.0,0.00030958,2]
[311019876,1704870696480,-500.0,0.00030958,2]
[311019877,1704870696489,-665.28,0.00030958,2]
[311019878,1704870696498,-500.0,0.00030958,2]
[311019879,1704870696508,-500.0,0.00030958,2]
[311019880,1704870696518,-548.3,0.00030958,2]
[311019881,1704870696527,-500.0,0.00030958,2]
[311019882,1704870696538,-500.0,0.00030958,2]
[311019883,1704870696547,-500.0,0.00030958,2]
[311019884,1704870696557,-500.0,0.00030958,2]
[311019885,1704870696566,-500.0,0.00030958,2]
[311019886,1704870696575,-715.36,0.00030958,2]
[311019887,1704870696585,-500.0,0.00030958,2]
[311019888,1704870696594,-500.0,0.00030958,2]
[311019889,1704870696604,-1496.17,0.00030958,2]
[311019890,1704870696613,-541.33918073,0.00030958,2]
[311019891,1704870696623,-500.0,0.00030958,2]
[311019892,1704870696633,-1519.77,0.00030958,2]
[311019893,1704870696643,-500.0,0.00030958,2]
[311019894,1704870696652,-500.0,0.00030958,2]
[311019895,1704870696662,-1382.23,0.00030958,2]
[311019896,1704870696672,-500.0,0.00030958,2]
[311019897,1704870696682,-1742.51,0.00030958,2]
[311019898,1704870696691,-163.82469079,0.00030958,2]
[311019899,1704870696701,-603.4,0.00030958,2]
[311019900,1704870696710,-500.0,0.00030958,2]
[311019901,1704870696719,-739.95,0.00030958,2]
[311019902,1704870696729,-500.0,0.00030958,2]
[311019903,1704870696738,-500.0,0.00030958,2]
[311019904,1704870696748,-500.0,0.00030958,2]
[311019905,1704870696758,-500.0,0.00030958,2]
[311019906,1704870696767,-500.0,0.00030958,2]
[311019907,1704870696777,-631.89,0.00030958,2]
[311019908,1704870696786,-948.83,0.00030958,2]
[311019909,1704870696796,-1398.97,0.00030958,2]
[311019910,1704870696805,-500.0,0.00030958,2]
[311019911,1704870696814,-500.0,0.00030958,30]
[311019912,1704870696823,-500.0,0.00030958,2]
[311019913,1704870696832,-598.83,0.00030958,2]
[311019914,1704870696842,-500.0,0.00030958,2]
[311019915,1704870696852,-500.0,0.00030958,2]
[311019916,1704870696861,-500.0,0.00030958,2]
[311019917,1704870696870,-1659.73,0.00030958,2]
[311019918,1704870696879,-500.0,0.00030958,2]
[311019919,1704870696889,-500.0,0.00030958,2]
[311019920,1704870696899,-639.56,0.00030958,2]
[311019921,1704870696908,-509.30607594,0.00030958,2]
[311019922,1704870696917,-694.61,0.00030958,2]
[311019923,1704870696926,-500.0,0.00030958,2]
[311019924,1704870696936,-2851.48,0.00030958,2]
[311019925,1704870696945,-500.0,0.00030958,2]
[311019926,1704870696954,-643.05616023,0.00030958,2]
[311019927,1704870696963,-500.0,0.00030958,2]
[311019928,1704870696972,-764.78,0.00030958,2]
[311019929,1704870696982,-500.0,0.00030958,2]
[311019930,1704870696991,-2312.4,0.00030958,2]
[311019931,1704870697000,-500.0,0.00030958,2]
[311019932,1704870697009,-500.0,0.00030958,2]
[311019933,1704870697018,-500.0,0.00030958,2]
[311019934,1704870697028,-1425.98,0.00030958,2]
[311019935,1704870697037,-702.43,0.00030958,2]
[311019936,1704870697046,-500.0,0.00030958,2]
[311019937,1704870697055,-987.87,0.00030958,2]
[311019938,1704870697065,-1488.64,0.00030958,2]
[311019939,1704870697074,-1051.87,0.00030958,2]
[311019940,1704870697084,-880.8,0.00030958,2]
[311019941,1704870697093,-715.7,0.00030958,2]
[311019942,1704870697103,-500.0,0.00030958,2]
[311019943,1704870697113,-500.0,0.00030958,2]
[311019944,1704870697123,-1289.38,0.00030958,2]
[311019945,1704870697132,-500.0,0.00030958,2]
[311019946,1704870697141,-1468.36,0.00030958,2]
[311019947,1704870697151,-845.46,0.00030958,2]
[311019948,1704870697160,-500.0,0.00030958,2]
[311019949,1704870697169,-563.62,0.00030958,2]
[311019950,1704870697178,-765.44,0.00030958,2]
[311019951,1704870697188,-500.0,0.00030958,2]
[311019952,1704870697197,-500.0,0.00030958,2]
[311019953,1704870697206,-1036.85,0.00030958,2]
[311019954,1704870697216,-500.0,0.00030958,2]
[311019955,1704870697225,-500.0,0.00030958,2]
[311019956,1704870697235,-500.0,0.00030958,2]
[311019957,1704870697244,-1277.99,0.00030958,2]
[311019958,1704870697253,-500.0,0.00030958,2]
[311019959,1704870697263,-536.68,0.00030958,2]
[311019960,1704870697273,-500.0,0.00030958,2]
[311019961,1704870697282,-952.34,0.00030958,2]
[311019962,1704870697291,-500.0,0.00030958,2]
[311019963,1704870697301,-500.0,0.00030958,2]
[311019964,1704870697310,-500.0,0.00030958,2]
[311019965,1704870697319,-500.0,0.00030958,2]
[311019966,1704870697329,-654.11,0.00030958,2]
[311019967,1704870697338,-898.09,0.00030958,2]
[311019968,1704870697350,-500.0,0.00030958,2]
[311019969,1704870697359,-1181.06,0.00030958,2]
[311019970,1704870697368,-695.04,0.00030958,2]
[311019971,1704870697378,-501.18,0.00030958,2]
[311019972,1704870697390,-1579.48,0.00030958,2]
[311019973,1704870697399,-500.0,0.00030958,2]
[311019974,1704870697409,-559.26,0.00030958,2]
[311019975,1704870697418,-1391.88,0.00030958,2]
[311019976,1704870697429,-500.0,0.00030958,2]
[311019977,1704870697439,-500.0,0.00030958,2]
[311019978,1704870697449,-500.0,0.00030958,2]
[311019979,1704870697458,-1058.3,0.00030958,2]
[311019980,1704870697467,-2060.27,0.00030958,2]
[311019981,1704870697477,-1053.05,0.00030958,2]
[311019982,1704870697487,-520.59380299,0.00030958,2]
[311019983,1704870697496,-1041.55,0.00030958,2]
[311019984,1704870697506,-632.16,0.00030958,2]
[311019985,1704870697516,-500.0,0.00030958,2]
[311019986,1704870697525,-500.0,0.00030958,2]
[311019987,1704870697535,-2547.44,0.00030958,2]
[311019988,1704870697544,-959.27,0.00030958,2]
[311019989,1704870697554,-500.0,0.00030958,2]
[311019990,1704870697563,-1651.15,0.00030958,2]
[311019991,1704870697572,-504.51060762,0.00030958,2]
[311019992,1704870697582,-500.0,0.00030958,2]
[311019993,1704870697591,-500.0,0.00030958,2]
[311019994,1704870697601,-500.0,0.00030958,2]
[311019995,1704870697610,-500.0,0.00030958,2]
[311019996,1704870697619,-500.0,0.00030958,2]
[311019997,1704870697629,-1891.65,0.00030958,2]
[311019998,1704870697638,-686.52,0.00030958,2]
[311019999,1704870697648,-2155.13,0.00030958,2]
[311020000,1704870697657,-3891.23,0.00030958,2]
[311020001,1704870697667,-1522.98,0.00030958,2]
[311020002,1704870697677,-1987.61,0.00030958,2]
[311020003,1704870697686,-555.61314076,0.00030958,2]
[311020004,1704870697695,-1932.68,0.00030958,2]
[311020005,1704870697705,-1396.39,0.00030958,2]
[311020006,1704870697714,-759.12,0.00030958,2]
[311020007,1704870697724,-500.0,0.00030958,2]
[311020008,1704870697733,-500.0,0.00030958,2]
[311020009,1704870697954,-500.0,0.00030958,2]
[311020010,1704870697978,-500.0,0.00030958,2]
[311020011,1704870697987,-500.0,0.00030958,2]
[311020012,1704870697996,-500.0,0.00030958,2]
[311020013,1704870698005,-500.0,0.00030958,2]
[311020014,1704870698015,-1122.26,0.00030958,2]
[311020015,1704870698024,-500.0,0.00030958,2]
[311020016,1704870698033,-680.03,0.00030958,2]
[311020017,1704870698043,-500.0,0.00030958,2]
[311020018,1704870698052,-1280.98,0.00030958,2]
[311020019,1704870698062,-500.0,0.00030958,2]
[311020020,1704870698071,-646.90995001,0.00030958,5]
[311020021,1704870698080,-1238.07,0.00030958,2]
[311020022,1704870698089,-500.0,0.00030958,2]
[311020023,1704870698098,-500.0,0.00030958,2]
[311020024,1704870698107,-500.0,0.00030958,2]
[311020025,1704870698117,-500.0,0.00030958,2]
[311020026,1704870698126,-1034.94,0.00030958,2]
[311020027,1704870698135,-686.0,0.00030958,2]
[311020028,1704870698144,-809.39,0.00030958,2]
[311020029,1704870698153,-1017.49,0.00030958,2]
[311020030,1704870698162,-500.0,0.00030958,2]
[311020031,1704870698172,-500.0,0.00030958,2]
[311020032,1704870698182,-500.0,0.00030958,2]
[311020033,1704870698191,-1328.2,0.00030958,2]
[311020034,1704870698200,-950.34,0.00030958,2]
[311020035,1704870698209,-500.0,0.00030958,2]
[311020036,1704870698218,-3341.38,0.00030958,2]
[311020037,1704870698227,-670.2,0.00030958,2]
[311020038,1704870698237,-2540.16,0.00030958,2]
[311020039,1704870698246,-1367.73,0.00030958,2]
[311020040,1704870698255,-500.0,0.00030958,2]
[311020041,1704870698264,-500.0,0.00030958,2]
[311020042,1704870698273,-500.0,0.00030958,2]
[311020043,1704870698283,-1727.65,0.00030958,2]
[311020044,1704870698292,-1312.94,0.00030958,2]
[311020045,1704870698301,-500.0,0.00030958,2]
[311020046,1704870698310,-500.0,0.00030958,2]
[311020047,1704870698319,-4324.61,0.00030958,2]
[311020048,1704870698328,-500.0,0.00030958,2]
[311020049,1704870698338,-1000.0,0.00030958,2]
[311020050,1704870698348,-500.0,0.00030958,2]
[311020051,1704870698357,-653.12,0.00030958,2]
[311020052,1704870698367,-500.0,0.00030958,2]
[311020053,1704870698376,-814.4,0.00030958,2]
[311020054,1704870698385,-500.0,0.00030958,2]
[311020055,1704870698395,-500.0,0.00030958,2]
[311020056,1704870698404,-2136.39,0.00030958,2]
[311020057,1704870698413,-500.0,0.00030958,2]
[311020058,1704870698422,-1023.93,0.00030958,2]
[311020059,1704870698432,-1839.58,0.00030958,2]
[311020060,1704870698441,-500.0,0.00030958,2]
[311020061,1704870698450,-795.14,0.00030958,2]
[311020062,1704870698459,-500.0,0.00030958,2]
[311020063,1704870698468,-765.15,0.00030958,2]
[311020064,1704870698477,-680.64,0.00030958,2]
[311020065,1704870698487,-500.0,0.00030958,2]
[311020066,1704870698497,-3808.16,0.00030958,2]
[311020067,1704870698507,-500.0,0.00030958,2]
[311020068,1704870698516,-500.0,0.00030958,2]
[311020069,1704870698525,-1091.93,0.00030958,2]
[311020070,1704870698535,-500.0,0.00030958,2]
[311020071,1704870698544,-500.0,0.00030958,2]
[311020072,1704870698553,-1386.71,0.00030958,2]
[311020073,1704870698563,-509.28813296,0.00030958,2]
[311020074,1704870698572,-1315.78,0.00030958,2]
[311020075,1704870698582,-850.57,0.00030958,2]
[311020076,1704870698591,-959.44,0.00030958,2]
[311020077,1704870698601,-1188.47,0.00030958,2]
[311020078,1704870698610,-867.87,0.00030958,2]
[311020079,1704870698619,-5607.81,0.00030958,2]
[311020080,1704870698629,-500.0,0.00030958,2]
[311020081,1704870698638,-500.0,0.00030958,2]
[311020082,1704870698647,-500.0,0.00030958,2]
[311020083,1704870698656,-500.0,0.00030958,2]
[311020084,1704870698665,-1392.89,0.00030958,2]
[311020085,1704870698675,-2379.77,0.00030958,2]
[311020086,1704870698684,-1956.34,0.00030958,2]
[311020087,1704870698693,-2165.74,0.00030958,2]
[311020088,1704870698703,-500.0,0.00030958,2]
[311020089,1704870698712,-500.0,0.00030958,2]
[311020090,1704870698721,-500.0,0.00030958,2]
[311020091,1704870698730,-2685.4,0.00030958,2]
[311020092,1704870698739,-1510.84,0.00030958,2]
[311020093,1704870698748,-1438.74,0.00030958,2]
[311020094,1704870698757,-500.0,0.00030958,2]
[311020095,1704870698767,-2761.15,0.00030958,2]
[311020096,1704870698777,-700.83,0.00030958,2]
[311020097,1704870698786,-500.0,0.00030958,2]
[311020098,1704870698795,-1552.71,0.00030958,2]
[311020099,1704870698804,-500.0,0.00030958,2]
[311020100,1704870698813,-3142.76,0.00030958,2]
[311020101,1704870698822,-559.03,0.00030958,2]
[311020102,1704870698832,-1261.25,0.00030958,2]
[311020103,1704870698841,-500.0,0.00030958,2]
[311020104,1704870698851,-500.0,0.00030958,2]
[311020105,1704870698860,-500.0,0.00030958,2]
[311020106,1704870698869,-834.98,0.00030958,2]
[311020107,1704870698878,-1656.83,0.00030958,2]
[311020108,1704870698887,-731.0,0.00030958,2]
[311020109,1704870698896,-1804.62,0.00030958,2]
[311020110,1704870698905,-500.0,0.00030958,2]
[311020111,1704870698915,-1849.98,0.00030958,2]
[311020112,1704870698924,-500.0,0.00030958,2]
[311020113,1704870698934,-891.94,0.00030958,2]
[311020114,1704870698943,-1466.49,0.00030958,2]
[311020115,1704870698953,-627.27,0.00030958,2]
[311020116,1704870698962,-1328.67,0.00030958,2]
[311020117,1704870698971,-2208.94,0.00030958,2]
[311020118,1704870698980,-797.89,0.00030958,2]
[311020119,1704870698989,-1744.68,0.00030958,2]
[311020120,1704870698998,-500.0,0.00030958,2]
[311020121,1704870699007,-4646.55,0.00030958,2]
[311020122,1704870699017,-13405.24,0.00030958,2]
[311020123,1704870699026,-500.0,0.00030958,2]
[311020124,1704870699035,-500.0,0.00030958,2]
[311020125,1704870699043,-500.0,0.00030958,2]
[311020126,1704870699053,-500.0,0.00030958,2]
[311020127,1704870699062,-1204.78,0.00030958,2]
[311020128,1704870699071,-2097.86,0.00030958,2]
[311020129,1704870699080,-600.13,0.00030958,2]
[311020130,1704870699090,-500.0,0.00030958,2]
[311020131,1704870699100,-1042.6,0.00030958,2]
[311020132,1704870699110,-756.26,0.00030958,2]
[311020133,1704870699119,-586.64,0.00030958,2]
[311020134,1704870699128,-500.0,0.00030958,2]
[311020135,1704870699137,-500.0,0.00030958,2]
[311020136,1704870699147,-516.49,0.00030958,2]
[311020137,1704870699157,-987.15,0.00030958,2]
[311020138,1704870699166,-582.11,0.00030958,2]
[311020139,1704870699175,-500.0,0.00030958,2]
[311020140,1704870699185,-3994.62,0.00030958,2]
[311020141,1704870699194,-500.0,0.00030958,2]
[311020142,1704870699203,-2359.56,0.00030958,2]
[311020143,1704870699212,-500.0,0.00030958,2]
[311020144,1704870699222,-2376.3,0.00030958,2]
[311020145,1704870699231,-618.99842885,0.00030958,2]
[311020146,1704870699240,-500.0,0.00030958,2]
[311020147,1704870699249,-6423.78506669,0.00030958,2]
[311020148,1704870700328,-750.54493331,0.00030958,2]
[311020149,1704870700338,-500.0,0.00030958,2]
[311020150,1704870700349,-107.10947002,0.00030958,2]
[311020151,1704870700443,-500.0,0.00030136,2]
[311020152,1704870700630,-662.24,0.00030136,2]
[311020153,1704870700640,-1962.93,0.0003041,2]
[311020154,1704870700649,-500.0,0.00030684,2]
[311020155,1704870700658,-392.89052998,0.00030958,2]
[311020156,1704870700667,-500.0,0.00030958,2]
[311020157,1704870700677,-2118.14,0.00030958,2]
[311020158,1704870700686,-1599.81,0.00030958,2]
[311020159,1704870700695,-5024.81,0.00030958,2]
[311020160,1704870700704,-500.0,0.00030958,2]
[311020161,1704870700713,-2088.36,0.00030958,2]
[311020162,1704870700722,-1828.24,0.00030958,2]
[311020163,1704870700731,-504.54569201,0.00030958,2]
[311020164,1704870700741,-8082.26,0.00030958,2]
[311020165,1704870700750,-2044.06,0.00030958,2]
[311020166,1704870700759,-500.0,0.00030958,2]
[311020167,1704870700768,-541.83,0.00030958,2]
[311020168,1704870700778,-500.0,0.00030958,2]
[311020169,1704870700787,-1104.36,0.00030958,2]
[311020170,1704870700796,-4065.29,0.00030958,2]
[311020171,1704870700805,-1147.27,0.00030958,2]
[311020172,1704870700814,-3383.4,0.00030958,2]
[311020173,1704870700823,-22040.22,0.00030958,2]
[311020174,1704870700832,-515.05,0.00030958,2]
[311020175,1704870700841,-500.0,0.00030958,2]
[311020176,1704870700850,-2213.33,0.00030958,2]
[311020177,1704870700860,-2343.33,0.00030958,2]
[311020178,1704870700869,-500.0,0.00030958,2]
[311020179,1704870700878,-500.0,0.00030958,2]
[311020180,1704870700887,-8135.87,0.00030958,2]
[311020181,1704870700896,-1759.41,0.00030958,2]
[311020182,1704870700905,-500.0,0.00030958,2]
[311020183,1704870700915,-500.0,0.00030958,2]
[311020184,1704870700924,-503.91,0.00030958,2]
[311020185,1704870700933,-500.0,0.00030958,2]
[311020186,1704870700943,-705.23,0.00030958,2]
[311020187,1704870700952,-500.0,0.00030958,2]
[311020188,1704870700961,-568.42,0.00030958,2]
[311020189,1704870700970,-500.0,0.00030958,2]
[311020190,1704870700979,-500.0,0.00030958,2]
[311020191,1704870700988,-1047.2,0.00030958,2]
[311020192,1704870700997,-1273.82115904,0.00030958,2]
[311020193,1704870701618,-324.83345453,0.000229,2]
[311020194,1704870701629,-36.51604579,0.000229,2]
[311020195,1704870701639,-324.06968758,0.00030136,2]
[311020196,1704870702476,18678.102494,0.00022389,2]
[311020197,1704870702806,-9675.93031242,0.00030136,2]
[311020198,1704870702817,-1759.44440661,0.00030136,2]
[311020199,1704870702839,-558.65808,0.00030136,2]
[311020200,1704870704212,-314.19467934,0.00022502,2]
[311020201,1704870704222,-227.80532066,0.000229,2]
[311020202,1704870705679,-133.54417966,0.000229,2]
[311020203,1704870705691,-169.4871438,0.00026641,2]
[311020204,1704870705763,-1550.28001456,0.00026641,2]
[311020205,1704870707630,5385.16,0.000372,30]
[311020206,1704870713730,1596.87726617,0.00018086,2]
[311020207,1704870718005,531.80647171,0.00022388,2]
[311020208,1704870753707,511.38854445,0.00022501,2]
[311020209,1704870762342,283.84561309,0.00022388,2]
[311020210,1704870766561,845.481875,0.00022388,2]
[311020211,1704870771035,219.95090379,0.00022501,2]
[311020212,1704870772205,883.93852646,0.00022388,2]
[311020213,1704870780571,848.32811156,0.00022388,2]
[311020214,1704870782315,379.40227092,0.00022388,2]
[311020215,1704870790210,886.68586103,0.00022388,2]
[311020216,1704870815733,155.0,0.00022388,2]
[311020217,1704870817340,1134.78992634,0.00022501,2]
[311020218,1704870828001,155.0,0.00022388,2]
[311020219,1704870833824,18937.12709548,0.00022388,2]
[311020220,1704870843453,-420.50675203,0.00022502,2]
[311020221,1704870880657,176.95281129,0.00022502,2]
[311020222,1704870898610,208.77538949,0.00022502,2]
[311020223,1704870901183,360.58392018,0.00022502,2]
[311020224,1704870912066,543.37000018,0.00022502,2]
[311020225,1704870913121,155.0,0.00022502,2]
[311020226,1704870922744,155.1949606,0.00022502,2]
[311020227,1704870923697,155.0,0.00022502,2]
[311020228,1704870938013,520.66961615,0.00022502,2]
[311020229,1704870939782,156.95390495,0.0002,2]
[311020230,1704870940393,15680.19062212,0.00022502,2]
[311020231,1704870952661,155.0,0.00022502,2]
[311020234,1704870959131,6075.32821196,0.00022502,2]
[311020235,1704870959535,5183.28447778,0.00022502,2]
[311020236,1704870961005,7413.23671885,0.00022502,2]
[311020237,1704870978189,608.8671776,0.00022502,2]
[311020238,1704870978351,883.76517896,0.00022502,2]
[311020239,1704870979194,5139.1398845,0.00022502,2]
[311020240,1704870980829,155.0,0.00022502,2]
[311020243,1704870990189,1932.752725,0.00037155,30]
[311020244,1704870990220,155.0,0.00022502,2]
[311020245,1704870991379,246.79448048,0.00022502,2]
[311020246,1704870991662,156.53151362,0.00022502,2]
[311020251,1704871014364,283.77880731,0.00022502,2]
[311020254,1704871022388,418.64569275,0.00022502,2]
[311020257,1704871039560,401.67001773,0.00021827,2]
[311020260,1704871046635,155.0,0.00022502,2]
[311020261,1704871048496,1596.87726617,0.00018002,2]
[311020266,1704871062168,291.71338211,0.00022502,2]
[311020271,1704871078169,292.2292554,0.00022502,2]
[311020272,1704871087847,18937.12709548,0.00022502,2]
[311020273,1704871090953,312.97143084,0.00022502,2]
[311020276,1704871094764,155.0,0.00022502,2]
[311020279,1704871095947,532.55789459,0.00022502,2]